fUST/lending_fUST_20250719
["ID","MTS","AMOUNT","RATE_DAILY","PERIOD"]
[373291851,1752929467260,-460.0,0.00020083,2]
[373291852,1752929467269,-460.0,0.00020083,2]
[373291853,1752929467279,-460.0,0.00020083,2]
[373291854,1752929467291,-460.0,0.00020083,2]
[373291855,1752929467301,-460.0,0.00020083,2]
[373291856,1752929467311,-460.0,0.00020083,2]
[373291857,1752929467320,-151.0,0.00020083,2]
[373291858,1752929467330,-460.0,0.00020083,2]
[373291859,1752929467340,-460.0,0.00020083,2]
[373291860,1752929467349,-151.0,0.00020083,2]
[373291861,1752929467358,-164.564974,0.00020083,2]
[373291862,1752929467368,-151.0,0.00020083,2]
[373291863,1752929467378,-498.33,0.00020083,2]
[373291864,1752929467387,-151.0,0.00020083,2]
[373291865,1752929467397,-460.0,0.00020083,2]
[373291866,1752929467406,-460.0,0.00020083,2]
[373291867,1752929467498,-460.0,0.00020083,2]
[373291868,1752929467508,-460.0,0.00020083,2]
[373291869,1752929467518,-198.11978747,0.00020083,2]
[373291870,1752929467528,-460.0,0.00020083,2]
[373291871,1752929467542,-151.0,0.00020083,2]
[373291872,1752929467552,-210.768479,0.00020083,2]
[373291873,1752929467562,-210.768479,0.00020083,2]
[373291874,1752929467572,-460.0,0.00020083,2]
[373291875,1752929467584,-460.0,0.00020083,2]
[373291876,1752929467594,-483.75,0.00020083,2]
[373291877,1752929467604,-629.02,0.00020083,2]
[373291878,1752929467614,-460.0,0.00020083,2]
[373291879,1752929467626,-7042.04,0.00020083,2]
[373291880,1752929467636,-479.16,0.00020083,2]
[373291881,1752929467646,-460.0,0.00020083,2]
[373291882,1752929467656,-460.0,0.00020083,2]
[373291883,1752929467665,-460.0,0.00020083,2]
[373291884,1752929467675,-498.33,0.00020083,2]
[373291885,1752929467685,-460.0,0.00020083,2]
[373291886,1752929467695,-477.11,0.00020083,2]
[373291887,1752929467705,-460.0,0.00020083,2]
[373291888,1752929467715,-3223.2,0.00020083,2]
[373291889,1752929467725,-663.26,0.00020083,2]
[373291890,1752929467735,-463.38,0.00020083,2]
[373291891,1752929467745,-544.55,0.00020083,2]
[373291892,1752929467756,-460.0,0.00020084,2]
[373291893,1752929467765,-460.0,0.00020084,2]
[373291894,1752929467775,-1399.34,0.00020084,2]
[373291895,1752929467787,-828.53,0.00020084,2]
[373291896,1752929467797,-1547.59,0.00020085,2]
[373291897,1752929467806,-1426.56,0.00020085,2]
[373291898,1752929467817,-479.16,0.00020085,2]
[373291899,1752929467827,-1523.0,0.00020085,2]
[373291900,1752929467839,-1254.1,0.00020085,2]
[373291901,1752929467849,-215.0738,0.00020097,2]
[373291902,1752929467859,-151.0,0.00020185,2]
[373291903,1752929467869,-620.44,0.00020185,2]
[373291904,1752929467879,-460.0,0.00020185,2]
[373291905,1752929467889,-460.0,0.00020185,2]
[373291906,1752929467898,-257.403127,0.00020185,2]
[373291907,1752929467908,-460.0,0.00020185,2]
[373291908,1752929467917,-460.0,0.00020185,2]
[373291909,1752929467927,-595.56806391,0.00020185,2]
[373291910,1752929467936,-460.0,0.00020185,2]
[373291911,1752929467946,-460.0,0.00020185,2]
[373291912,1752929467958,-460.0,0.00020185,2]
[373291913,1752929467968,-301.99301511,0.00020185,2]
[373291914,1752929467979,-470.741385,0.00020187,2]
[373291915,1752929467992,-649.403,0.00020207,2]
[373291916,1752929468003,-2156.0,0.00020207,2]
[373291917,1752929468019,-968.0,0.00020207,2]
[373291918,1752929468030,-5344.12628716,0.00020314,3]
[373291919,1752929468040,-460.0,0.00020356,2]
[373291920,1752929468049,-460.0,0.00020356,2]
[373291921,1752929468059,-460.0,0.00020356,2]
[373291922,1752929468068,-3303.28,0.00020356,2]
[373291923,1752929468078,-527.41,0.00020356,2]
[373291924,1752929468087,-484.52,0.00020356,2]
[373291925,1752929468097,-1904.99,0.00020356,2]
[373291926,1752929468106,-460.0,0.00020356,2]
[373291927,1752929468116,-460.0,0.00020356,2]
[373291928,1752929468126,-460.0,0.00020356,2]
[373291929,1752929468135,-989.12,0.00020356,2]
[373291930,1752929468145,-1134.49,0.00020356,2]
[373291931,1752929468154,-1136.12,0.00020356,2]
[373291932,1752929468164,-460.0,0.00020356,2]
[373291933,1752929468173,-460.0,0.00020356,2]
[373291934,1752929468183,-460.0,0.00020356,2]
[373291935,1752929468192,-479.16,0.00020356,2]
[373291936,1752929468202,-521.87,0.00020356,2]
[373291937,1752929468212,-460.0,0.00020356,2]
[373291938,1752929468222,-1278.81,0.00020356,2]
[373291939,1752929468231,-3349.86,0.00020356,2]
[373291940,1752929468240,-475.11,0.00020357,2]
[373291941,1752929468250,-460.0,0.00020357,2]
[373291942,1752929468260,-460.0,0.00020357,2]
[373291943,1752929468270,-460.0,0.00020357,2]
[373291944,1752929468280,-460.0,0.00020357,2]
[373291945,1752929468291,-329.92197184,0.00020357,2]
[373291946,1752929468301,-460.0,0.00020357,2]
[373291947,1752929468311,-460.0,0.00020357,2]
[373291948,1752929468326,-498.33,0.00020357,2]
[373291949,1752929468335,-460.0,0.00020357,2]
[373291950,1752929468345,-460.0,0.00020357,2]
[373291951,1752929468355,-460.0,0.00020357,2]
[373291952,1752929468365,-460.0,0.00020357,2]
[373291953,1752929468374,-460.0,0.00020357,2]
[373291954,1752929468384,-460.0,0.00020357,2]
[373291955,1752929468393,-483.75,0.00020357,2]
[373291956,1752929468403,-629.02,0.00020357,2]
[373291957,1752929468413,-341.92607919,0.00020357,2]
[373291958,1752929468423,-7042.04,0.00020357,2]
[373291959,1752929468433,-479.16,0.00020357,2]
[373291960,1752929468443,-460.0,0.00020357,2]
[373291961,1752929468452,-460.0,0.00020357,2]
[373291962,1752929468462,-460.0,0.00020357,2]
[373291963,1752929468471,-498.33,0.00020357,2]
[373291964,1752929468481,-460.0,0.00020357,2]
[373291965,1752929468491,-477.11,0.00020357,2]
[373291966,1752929468501,-460.0,0.00020357,2]
[373291967,1752929468510,-3223.2,0.00020357,2]
[373291968,1752929468520,-663.26,0.00020357,2]
[373291969,1752929468529,-463.38,0.00020357,2]
[373291970,1752929468542,-544.55,0.00020357,2]
[373291971,1752929468551,-460.0,0.00020358,2]
[373291972,1752929468560,-460.0,0.00020358,2]
[373291973,1752929468571,-1399.34,0.00020358,2]
[373291974,1752929468587,-828.53,0.00020358,2]
[373291975,1752929468597,-1547.59,0.00020359,2]
[373291976,1752929468608,-1426.56,0.00020359,2]
[373291977,1752929468619,-479.16,0.00020359,2]
[373291978,1752929468630,-1523.0,0.00020359,2]
[373291979,1752929468639,-1254.1,0.00020359,2]
[373291980,1752929468649,-151.0,0.000204,2]
[373291981,1752929468659,-151.0,0.000204,2]
[373291982,1752929468669,-160.0,0.000204,3]
[373291983,1752929468679,-12612.80205064,0.000204,3]
[373291984,1752929468689,-151.0,0.000204,2]
[373291985,1752929468699,-151.0,0.000204,2]
[373291986,1752929468708,-476.34170116,0.000204,3]
[373291987,1752929468719,-620.44,0.00020459,2]
[373291988,1752929468729,-460.0,0.00020459,2]
[373291989,1752929468739,-460.0,0.00020459,2]
[373291990,1752929468748,-460.0,0.00020459,2]
[373291991,1752929468758,-460.0,0.00020459,2]
[373291992,1752929468768,-460.0,0.00020459,2]
[373291993,1752929468778,-9292.58942053,0.000205,2]
[373291994,1752929468791,-151.0,0.000205,2]
[373291995,1752929468801,-1500.0,0.0002052,2]
[373291996,1752929468811,-571.37948771,0.0002052,2]
[373291997,1752929468821,-174.63255657,0.0002052,2]
[373291998,1752929468830,-1000.0,0.0002052,2]
[373291999,1752929468840,-1500.0,0.0002052,2]
[373292000,1752929468850,-1500.0,0.0002052,2]
[373292001,1752929468860,-1500.0,0.0002052,2]
[373292002,1752929468870,-501.37630859,0.00020521,2]
[373292003,1752929468879,-500.0,0.00020547,2]
[373292004,1752929468889,-500.0,0.00020547,2]
[373292005,1752929468899,-500.0,0.00020547,2]
[373292006,1752929468909,-500.0,0.00020547,2]
[373292007,1752929468918,-500.0,0.00020547,2]
[373292008,1752929468928,-500.0,0.00020547,2]
[373292009,1752929468937,-500.0,0.00020547,2]
[373292010,1752929468947,-500.0,0.00020547,2]
[373292011,1752929468957,-500.0,0.00020547,2]
[373292012,1752929468967,-500.0,0.00020547,2]
[373292013,1752929468977,-500.0,0.00020547,2]
[373292014,1752929468987,-500.0,0.00020547,2]
[373292015,1752929468996,-500.0,0.00020547,2]
[373292016,1752929469006,-5344.12628716,0.00020555,3]
[373292017,1752929469093,-1500.0,0.00020565,2]
[373292018,1752929469104,-1500.0,0.00020567,2]
[373292019,1752929469114,-1500.0,0.00020567,2]
[373292020,1752929469123,-214.52603969,0.000206,3]
[373292021,1752929469133,-250.0,0.00020603,2]
[373292022,1752929469142,-460.0,0.0002063,2]
[373292023,1752929469151,-167.035715,0.0002063,3]
[373292024,1752929469161,-449.38642602,0.0002063,2]
[373292025,1752929469170,-460.0,0.0002063,2]
[373292026,1752929469180,-3303.28,0.0002063,2]
[373292027,1752929469189,-527.41,0.0002063,2]
[373292028,1752929469199,-484.52,0.0002063,2]
[373292029,1752929469209,-1904.99,0.0002063,2]
[373292030,1752929469219,-460.0,0.0002063,2]
[373292031,1752929469229,-460.0,0.0002063,2]
[373292032,1752929469239,-460.0,0.0002063,2]
[373292033,1752929469249,-989.12,0.0002063,2]
[373292034,1752929469258,-1134.49,0.0002063,2]
[373292035,1752929469268,-1136.12,0.0002063,2]
[373292036,1752929469277,-460.0,0.0002063,2]
[373292037,1752929469287,-460.0,0.0002063,2]
[373292038,1752929469296,-460.0,0.0002063,2]
[373292039,1752929469307,-479.16,0.0002063,2]
[373292040,1752929469317,-521.87,0.0002063,2]
[373292041,1752929469327,-460.0,0.0002063,2]
[373292042,1752929469337,-1278.81,0.0002063,2]
[373292043,1752929469346,-3349.86,0.0002063,2]
[373292044,1752929469356,-460.0,0.00020631,2]
[373292045,1752929469366,-460.0,0.00020631,2]
[373292046,1752929469375,-460.0,0.00020631,2]
[373292047,1752929469385,-344.111953,0.00020631,2]
[373292048,1752929469394,-460.0,0.00020631,2]
[373292049,1752929469404,-498.33,0.00020631,2]
[373292050,1752929469413,-460.0,0.00020631,2]
[373292051,1752929469422,-460.0,0.00020631,2]
[373292052,1752929469432,-460.0,0.00020631,2]
[373292053,1752929469442,-460.0,0.00020631,2]
[373292054,1752929469451,-460.0,0.00020631,2]
[373292055,1752929469461,-460.0,0.00020631,2]
[373292056,1752929469470,-483.75,0.00020631,2]
[373292057,1752929469480,-629.02,0.00020631,2]
[373292058,1752929469490,-7042.04,0.00020631,2]
[373292059,1752929469500,-479.16,0.00020631,2]
[373292060,1752929469509,-460.0,0.00020631,2]
[373292061,1752929469519,-417.97343759,0.00020631,2]
[373292062,1752929469528,-498.33,0.00020631,2]
[373292063,1752929469539,-460.0,0.00020631,2]
[373292064,1752929469548,-477.11,0.00020631,2]
[373292065,1752929469558,-460.0,0.00020631,2]
[373292066,1752929469567,-3223.2,0.00020631,2]
[373292067,1752929469579,-663.26,0.00020631,2]
[373292068,1752929469589,-463.38,0.00020631,2]
[373292069,1752929469598,-544.55,0.00020631,2]
[373292070,1752929469608,-151.0,0.00020632,2]
[373292071,1752929469618,-761.122609,0.00020632,2]
[373292072,1752929469628,-761.122609,0.00020632,2]
[373292073,1752929469638,-460.0,0.00020632,2]
[373292074,1752929469648,-460.0,0.00020632,2]
[373292075,1752929469660,-1399.34,0.00020632,2]
[373292076,1752929469670,-828.53,0.00020632,2]
[373292077,1752929469680,-1547.59,0.00020633,2]
[373292078,1752929469689,-1426.56,0.00020633,2]
[373292079,1752929469700,-479.16,0.00020633,2]
[373292080,1752929469710,-1523.0,0.00020633,2]
[373292081,1752929469720,-1254.1,0.00020633,2]
[373292082,1752929469730,-620.44,0.00020733,2]
[373292083,1752929469741,-460.0,0.00020733,2]
[373292084,1752929469750,-460.0,0.00020733,2]
[373292085,1752929469760,-460.0,0.00020733,2]
[373292086,1752929469770,-460.0,0.00020733,2]
[373292087,1752929469780,-151.0,0.00020735,2]
[373292088,1752929469793,-151.0,0.00020735,2]
[373292089,1752929469803,-16127.25694353,0.00020739,2]
[373292090,1752929469814,-5344.12628716,0.00020797,4]
[373292091,1752929469823,-804.614,0.00020821,2]
[373292092,1752929469833,-460.0,0.00020904,2]
[373292093,1752929469843,-3303.28,0.00020904,2]
[373292094,1752929469853,-527.41,0.00020904,2]
[373292095,1752929469862,-484.52,0.00020904,2]
[373292096,1752929469871,-1904.99,0.00020904,2]
[373292097,1752929469881,-460.0,0.00020904,2]
[373292098,1752929469891,-460.0,0.00020904,2]
[373292099,1752929469901,-460.0,0.00020904,2]
[373292100,1752929469911,-989.12,0.00020904,2]
[373292101,1752929469920,-1134.49,0.00020904,2]
[373292102,1752929469930,-1136.12,0.00020904,2]
[373292103,1752929469940,-460.0,0.00020904,2]
[373292104,1752929469949,-460.0,0.00020904,2]
[373292105,1752929469959,-460.0,0.00020904,2]
[373292106,1752929469969,-479.16,0.00020904,2]
[373292107,1752929469978,-521.87,0.00020904,2]
[373292108,1752929469987,-460.0,0.00020904,2]
[373292109,1752929469997,-1278.81,0.00020904,2]
[373292110,1752929470007,-3349.86,0.00020904,2]
[373292111,1752929470017,-460.0,0.00020905,2]
[373292112,1752929470026,-460.0,0.00020905,2]
[373292113,1752929470037,-498.33,0.00020905,2]
[373292114,1752929470046,-460.0,0.00020905,2]
[373292115,1752929470056,-460.0,0.00020905,2]
[373292116,1752929470065,-460.0,0.00020905,2]
[373292117,1752929470076,-460.0,0.00020905,2]
[373292118,1752929470097,-460.0,0.00020905,2]
[373292119,1752929470109,-460.0,0.00020905,2]
[373292120,1752929470118,-483.75,0.00020905,2]
[373292121,1752929470128,-629.02,0.00020905,2]
[373292122,1752929470138,-7042.04,0.00020905,2]
[373292123,1752929470148,-479.16,0.00020905,2]
[373292124,1752929470157,-462.34,0.00020905,2]
[373292125,1752929470167,-498.33,0.00020905,2]
[373292126,1752929470176,-460.0,0.00020905,2]
[373292127,1752929470185,-477.11,0.00020905,2]
[373292128,1752929470195,-460.0,0.00020905,2]
[373292129,1752929470205,-3223.2,0.00020905,2]
[373292130,1752929470214,-663.26,0.00020905,2]
[373292131,1752929470224,-463.38,0.00020905,2]
[373292132,1752929470234,-544.55,0.00020905,2]
[373292133,1752929470244,-460.0,0.00020906,2]
[373292134,1752929470253,-460.0,0.00020906,2]
[373292135,1752929470263,-1399.34,0.00020906,2]
[373292136,1752929470273,-828.53,0.00020906,2]
[373292137,1752929470282,-1547.59,0.00020907,2]
[373292138,1752929470293,-1426.56,0.00020907,2]
[373292139,1752929470303,-479.16,0.00020907,2]
[373292140,1752929470312,-1523.0,0.00020907,2]
[373292141,1752929470322,-1254.1,0.00020907,2]
[373292142,1752929470331,-167.035715,0.00020917,2]
[373292143,1752929470341,-705.18445603,0.00020956,5]
[373292144,1752929470350,-1370.4,0.00021,2]
[373292145,1752929470359,-151.0,0.00021007,2]
[373292146,1752929470369,-151.0,0.00021007,2]
[373292147,1752929470379,-620.44,0.00021007,2]
[373292148,1752929470389,-460.0,0.00021007,2]
[373292149,1752929470399,-460.0,0.00021007,2]
[373292150,1752929470410,-460.0,0.00021007,2]
[373292151,1752929470419,-224.2,0.0002102,2]
[373292152,1752929470428,-500.0,0.00021033,2]
[373292153,1752929470438,-5344.12628716,0.00021038,4]
[373292154,1752929470448,-1179.88427532,0.00021068,2]
[373292155,1752929470458,-504.31142319,0.00021068,2]
[373292156,1752929470549,-2000.0,0.00021068,2]
[373292157,1752929470560,-151.0,0.00021068,2]
[373292158,1752929470570,-1000.0,0.00021113,2]
[373292159,1752929470584,-986.8099699,0.00021115,2]
[373292160,1752929470594,-503.5032217,0.00021115,2]
[373292161,1752929470603,-460.0,0.00021178,2]
[373292162,1752929470614,-3303.28,0.00021178,2]
[373292163,1752929470625,-527.41,0.00021178,2]
[373292164,1752929470635,-484.52,0.00021178,2]
[373292165,1752929470645,-1904.99,0.00021178,2]
[373292166,1752929470658,-460.0,0.00021178,2]
[373292167,1752929470668,-460.0,0.00021178,2]
[373292168,1752929470678,-460.0,0.00021178,2]
[373292169,1752929470688,-989.12,0.00021178,2]
[373292170,1752929470698,-1134.49,0.00021178,2]
[373292171,1752929470708,-460.0,0.00021178,2]
[373292172,1752929470718,-1136.12,0.00021178,2]
[373292173,1752929470728,-460.0,0.00021178,2]
[373292174,1752929470737,-460.0,0.00021178,2]
[373292175,1752929470747,-479.16,0.00021178,2]
[373292176,1752929470757,-521.87,0.00021178,2]
[373292177,1752929470767,-1278.81,0.00021178,2]
[373292178,1752929470776,-462.87,0.00021179,2]
[373292179,1752929470785,-460.0,0.00021179,2]
[373292180,1752929470795,-498.33,0.00021179,2]
[373292181,1752929470804,-460.0,0.00021179,2]
[373292182,1752929470814,-460.0,0.00021179,2]
[373292183,1752929470823,-460.0,0.00021179,2]
[373292184,1752929470833,-460.0,0.00021179,2]
[373292185,1752929470843,-460.0,0.00021179,2]
[373292186,1752929470852,-460.0,0.00021179,2]
[373292187,1752929470862,-483.75,0.00021179,2]
[373292188,1752929470872,-629.02,0.00021179,2]
[373292189,1752929470883,-7042.04,0.00021179,2]
[373292190,1752929470892,-479.16,0.00021179,2]
[373292191,1752929470902,-498.33,0.00021179,2]
[373292192,1752929470911,-460.0,0.00021179,2]
[373292193,1752929470921,-477.11,0.00021179,2]
[373292194,1752929470931,-460.0,0.00021179,2]
[373292195,1752929470940,-3223.2,0.00021179,2]
[373292196,1752929470950,-663.26,0.00021179,2]
[373292197,1752929470959,-463.38,0.00021179,2]
[373292198,1752929470969,-544.55,0.00021179,2]
[373292199,1752929470979,-460.0,0.0002118,2]
[373292200,1752929470989,-1399.34,0.0002118,2]
[373292201,1752929470998,-828.53,0.0002118,2]
[373292202,1752929471008,-1547.59,0.00021181,2]
[373292203,1752929471017,-1426.56,0.00021181,2]
[373292204,1752929471027,-479.16,0.00021181,2]
[373292205,1752929471037,-1523.0,0.00021181,2]
[373292206,1752929471048,-1254.1,0.00021181,2]
[373292207,1752929471058,-5344.12628716,0.00021279,5]
[373292208,1752929471068,-620.44,0.00021281,2]
[373292209,1752929471077,-460.0,0.00021281,2]
[373292210,1752929471086,-151.0,0.00021281,2]
[373292211,1752929471095,-334.3282315,0.00021281,2]
[373292212,1752929471104,-151.0,0.00021281,2]
[373292213,1752929471114,-460.0,0.00021281,2]
[373292214,1752929471123,-566.0,0.00021437,2]
[373292215,1752929471133,-460.0,0.00021452,2]
[373292216,1752929471143,-3303.28,0.00021452,2]
[373292217,1752929471152,-527.41,0.00021452,2]
[373292218,1752929471162,-484.52,0.00021452,2]
[373292219,1752929471172,-1904.99,0.00021452,2]
[373292220,1752929471181,-460.0,0.00021452,2]
[373292221,1752929471191,-460.0,0.00021452,2]
[373292222,1752929471202,-299.33299282,0.00021452,2]
[373292223,1752929471211,-989.12,0.00021452,2]
[373292224,1752929471221,-1134.49,0.00021452,2]
[373292225,1752929471231,-460.0,0.00021452,2]
[373292226,1752929471240,-1136.12,0.00021452,2]
[373292227,1752929471249,-460.0,0.00021452,2]
[373292228,1752929471259,-217.34,0.00021452,2]
[373292229,1752929471269,-479.16,0.00021452,2]
[373292230,1752929471279,-521.87,0.00021452,2]
[373292231,1752929471290,-1278.81,0.00021452,2]
[373292232,1752929471300,-460.0,0.00021453,2]
[373292233,1752929471309,-498.33,0.00021453,2]
[373292234,1752929471319,-460.0,0.00021453,2]
[373292235,1752929471328,-460.0,0.00021453,2]
[373292236,1752929471338,-596.82,0.00021453,2]
[373292237,1752929471347,-460.0,0.00021453,2]
[373292238,1752929471357,-460.0,0.00021453,2]
[373292239,1752929471367,-460.0,0.00021453,2]
[373292240,1752929471377,-483.75,0.00021453,2]
[373292241,1752929471387,-629.02,0.00021453,2]
[373292242,1752929471397,-7042.04,0.00021453,2]
[373292243,1752929471406,-479.16,0.00021453,2]
[373292244,1752929471415,-498.33,0.00021453,2]
[373292245,1752929471425,-460.0,0.00021453,2]
[373292247,1752929471434,-477.11,0.00021453,2]
[373292248,1752929471444,-460.0,0.00021453,2]
[373292249,1752929471454,-3223.2,0.00021453,2]
[373292250,1752929471463,-663.26,0.00021453,2]
[373292251,1752929471473,-463.38,0.00021453,2]
[373292252,1752929471483,-544.55,0.00021453,2]
[373292253,1752929471493,-460.0,0.00021454,2]
[373292254,1752929471503,-1399.34,0.00021454,2]
[373292255,1752929471513,-828.53,0.00021454,2]
[373292256,1752929471522,-1547.59,0.00021455,2]
[373292257,1752929471532,-1426.56,0.00021455,2]
[373292258,1752929471543,-479.16,0.00021455,2]
[373292259,1752929471553,-1523.0,0.00021455,2]
[373292260,1752929471563,-1254.1,0.00021455,2]
[373292261,1752929471573,-223.0315306,0.00021466,2]
[373292262,1752929471587,-5344.12628716,0.00021521,5]
[373292263,1752929471597,-620.44,0.00021555,2]
[373292264,1752929471607,-460.0,0.00021555,2]
[373292265,1752929471616,-151.0,0.00021555,2]
[373292266,1752929471626,-151.0,0.00021555,2]
[373292267,1752929471636,-151.0,0.00021555,2]
[373292268,1752929471645,-210.768479,0.00021555,2]
[373292269,1752929471655,-210.768479,0.00021555,2]
[373292270,1752929471666,-460.0,0.00021555,2]
[373292271,1752929471675,-566.0,0.00021561,2]
[373292272,1752929471685,-566.0,0.00021572,2]
[373292273,1752929471694,-566.0,0.00021577,2]
[373292274,1752929471705,-506.81965426,0.00021616,2]
[373292275,1752929471715,-151.0,0.00021616,2]
[373292276,1752929471725,-151.0,0.00021616,2]
[373292277,1752929471735,-566.0,0.00021632,2]
[373292278,1752929471745,-230.0,0.00021642,2]
[373292279,1752929471755,-841.0,0.000217,2]
[373292280,1752929471764,-200.0,0.0002171,3]
[373292281,1752929471774,-167.035715,0.00021725,3]
[373292282,1752929471784,-460.0,0.00021726,2]
[373292283,1752929471796,-3303.28,0.00021726,2]
[373292284,1752929471883,-527.41,0.00021726,2]
[373292285,1752929471894,-484.52,0.00021726,2]
[373292286,1752929471903,-1904.99,0.00021726,2]
[373292287,1752929471912,-517.38878987,0.00021726,2]
[373292288,1752929471922,-989.12,0.00021726,2]
[373292289,1752929471932,-1134.49,0.00021726,2]
[373292290,1752929471942,-460.0,0.00021726,2]
[373292291,1752929471951,-1136.12,0.00021726,2]
[373292292,1752929471961,-170.59,0.00021726,2]
[373292293,1752929471971,-479.16,0.00021726,2]
[373292294,1752929471981,-521.87,0.00021726,2]
[373292295,1752929471991,-1278.81,0.00021726,2]
[373292296,1752929472001,-460.0,0.00021727,2]
[373292297,1752929472011,-498.33,0.00021727,2]
[373292298,1752929472020,-460.0,0.00021727,2]
[373292299,1752929472029,-460.0,0.00021727,2]
[373292300,1752929472040,-460.0,0.00021727,2]
[373292301,1752929472050,-199.12593399,0.00021727,2]
[373292302,1752929472060,-483.75,0.00021727,2]
[373292303,1752929472070,-629.02,0.00021727,2]
[373292304,1752929472080,-7042.04,0.00021727,2]
[373292305,1752929472090,-479.16,0.00021727,2]
[373292306,1752929472099,-498.33,0.00021727,2]
[373292307,1752929472109,-240.06681902,0.00021727,2]
[373292308,1752929472119,-477.11,0.00021727,2]
[373292309,1752929472129,-3223.2,0.00021727,2]
[373292310,1752929472139,-663.26,0.00021727,2]
[373292311,1752929472148,-463.38,0.00021727,2]
[373292312,1752929472159,-544.55,0.00021727,2]
[373292313,1752929472168,-566.0,0.00021728,2]
[373292314,1752929472178,-460.0,0.00021728,2]
[373292315,1752929472188,-1399.34,0.00021728,2]
[373292316,1752929472198,-828.53,0.00021728,2]
[373292317,1752929472207,-1547.59,0.00021729,2]
[373292318,1752929472216,-1426.56,0.00021729,2]
[373292319,1752929472226,-479.16,0.00021729,2]
[373292320,1752929472235,-1523.0,0.00021729,2]
[373292321,1752929472245,-1254.1,0.00021729,2]
[373292322,1752929472254,-566.0,0.00021742,2]
[373292323,1752929472264,-5344.12628716,0.00021762,5]
[373292324,1752929472274,-566.0,0.00021822,2]
[373292325,1752929472284,-620.44,0.00021829,2]
[373292326,1752929472296,-460.0,0.00021829,2]
[373292327,1752929472307,-439.80618325,0.00021829,2]
[373292328,1752929472317,-151.0,0.00021831,2]
[373292329,1752929472327,-160.0,0.00021891,3]
[373292330,1752929472337,-200.0,0.000219,2]
[373292331,1752929472347,-151.0,0.00021918,2]
[373292332,1752929472357,-151.0,0.00021918,2]
[373292333,1752929472367,-150.0,0.00021918,2]
[373292334,1752929472377,-150.0,0.00021918,2]
[373292335,1752929472387,-1752.0,0.0002192,2]
[373292336,1752929472397,-202.13019808,0.0002192,2]
[373292337,1752929472406,-1752.0,0.0002192,2]
[373292338,1752929472416,-1752.0,0.0002192,2]
[373292339,1752929472426,-1752.0,0.0002192,2]
[373292340,1752929472435,-1752.0,0.0002192,2]
[373292341,1752929472445,-1752.0,0.0002192,2]
[373292342,1752929472455,-1752.0,0.0002192,2]
[373292343,1752929472470,-1784.10004566,0.0002192,2]
[373292344,1752929472488,-13357.9,0.00022,7]
[373292345,1752929472504,-5197.1,0.00022,7]
[373292346,1752929472521,-2172.99,0.00022,7]
[373292347,1752929472539,-67429.5,0.00022,2]
[373292348,1752929472557,-151.982926,0.00022,7]
[373292349,1752929472577,-180.548408,0.00022,7]
[373292350,1752929472595,-151.0,0.00022,7]
[373292351,1752929472610,-761.122609,0.00022,7]